bitfinex/quotes_SOLUSD_20250929
["timestamp","ask_amount","ask_price","bid_price","bid_amount"]
[1759105995227,14.25559401,210.38,210.34,4.75420747]
[1759105996333,3.18052389,210.37,210.34,4.75420747]
[1759105996627,14.25559401,210.38,210.34,4.75420747]
[1759105998119,0.66,210.37,210.34,4.75420747]
[1759105998315,0.66,210.36,210.31,4.75488564]
[1759105998519,0.66,210.35,210.31,5.45488564]
[1759105998724,26.0,210.33,210.31,4.75488564]
[1759105998936,13.59559401,210.32,210.31,4.75488564]
[1759105999714,14.25559401,210.32,210.31,4.75488564]
[1759105999916,14.25559401,210.32,210.3,0.1]
[1759106000222,14.25559401,210.31,210.3,0.1]
[1759106000627,13.59559401,210.31,210.3,4.85511174]
[1759106001238,37.0,210.32,210.3,4.85511174]
[1759106002538,37.69,210.32,210.3,4.85511174]
[1759106002743,37.0,210.32,210.3,4.85511174]
[1759106004437,37.69,210.32,210.3,4.85511174]
[1759106005020,37.0,210.32,210.3,4.85511174]
[1759106005344,36.98,210.32,210.3,4.85511174]
[1759106006142,36.98,210.32,210.3,5.51511174]
[1759106006441,26.0,210.31,210.3,17.4028911]
[1759106006625,36.98,210.33,210.3,17.4028911]
[1759106006843,36.98,210.33,210.31,0.66]
[1759106007319,26.0,210.33,210.32,0.66]
[1759106007520,26.0,210.33,210.32,5.41465956]
[1759106007746,26.0,210.33,210.32,4.75465956]
[1759106007954,26.0,210.33,210.32,5.41465956]
[1759106008543,26.0,210.33,210.32,4.75465956]
[1759106009224,26.0,210.33,210.3,4.85497478]
[1759106009425,26.0,210.33,210.3,5.51497478]
[1759106011047,26.0,210.33,210.3,16.74275414]
[1759106014372,26.69,210.33,210.3,16.74275414]
[1759106014873,37.67,210.32,210.3,4.85497478]
[1759106015169,0.69,210.31,210.3,0.1]
[1759106016066,14.28559401,210.31,210.3,0.1]
[1759106016659,14.28559401,210.31,210.3,4.85511174]
[1759106017173,14.28559401,210.31,210.3,0.1]
[1759106018056,13.59559401,210.31,210.3,4.85511174]
[1759106020677,14.28559401,210.31,210.3,4.85511174]
[1759106022672,13.59559401,210.31,210.3,4.85511174]
[1759106024078,14.28559401,210.31,210.3,4.85511174]
[1759106026565,13.59559401,210.31,210.3,4.85511174]
[1759106026769,50.57559401,210.31,210.3,4.85511174]
[1759106026969,13.59559401,210.31,210.3,5.51511174]
[1759106028566,36.98,210.32,210.3,5.51511174]
[1759106029271,36.98,210.32,210.3,4.85511174]
[1759106030159,26.0,210.31,210.3,4.85511174]
[1759106030362,26.0,210.31,210.3,5.51511174]
[1759106030776,26.0,210.31,210.3,0.1]
[1759106030957,26.0,210.31,210.3,0.79]
[1759106031565,26.0,210.31,210.3,5.54511174]
[1759106031989,26.0,210.31,210.3,4.85511174]
[1759106032573,77.23559401,210.31,210.3,0.1]
[1759106032777,80.42006659,210.31,210.3,0.1]
[1759106033272,79.76006659,210.31,210.3,4.85511174]
[1759106033586,80.42006659,210.31,210.3,4.85511174]
[1759106033785,80.42006659,210.31,210.3,0.1]
[1759106035167,79.76006659,210.31,210.3,4.85511174]
[1759106036187,80.42006659,210.31,210.3,0.1]
[1759106037469,79.76006659,210.31,210.3,4.85511174]
[1759106040570,42.78006659,210.31,210.3,4.85511174]
[1759106040879,79.76006659,210.31,210.3,4.85511174]
[1759106041570,80.42006659,210.31,210.3,0.1]
[1759106042693,79.76006659,210.31,210.3,4.85511174]
[1759106042997,79.74006659,210.31,210.3,4.85511174]
[1759106044611,3.18447258,210.31,210.3,5.54511174]
[1759106044912,3.18447258,210.31,210.3,0.1]
[1759106044913,54.40250028,210.31,210.3,0.1]
[1759106045086,53.74250028,210.31,210.3,0.1]
[1759106045992,54.40250028,210.31,210.3,0.1]
[1759106049405,59.15738592,210.31,210.3,0.1]
[1759106049577,63.13968303,210.31,210.3,0.1]
[1759106049775,13.59559401,210.29,210.28,0.2]
[1759106049985,53.74250028,210.29,210.28,0.2]
[1759106050187,54.40250028,210.29,210.28,0.2]
[1759106050500,59.15918802,210.29,210.28,0.2]
[1759106050809,63.91452588,210.29,210.28,0.2]
[1759106051898,67.89593376,210.29,210.28,0.2]
[1759106052205,63.91452588,210.29,210.28,0.2]
[1759106052714,65.43351152,210.29,210.28,0.2]
[1759106053996,79.82811895,210.29,210.28,0.2]
[1759106054196,79.82811895,210.29,210.27,0.2]
[1759106054197,13.59559401,210.28,210.27,0.2]
[1759106054398,16.78250028,210.28,210.27,0.2]
[1759106054604,17.44250028,210.28,210.27,0.2]
[1759106055088,26.17089636,210.28,210.27,0.2]
[1759106058211,63.15089636,210.28,210.27,0.2]
[1759106059102,59.17806428,210.28,210.27,0.2]
[1759106059694,59.17806428,210.28,210.22,0.1]
[1759106059695,26.0,210.25,210.22,0.1]
[1759106059901,15.11457965,210.23,210.22,0.1]
[1759106060103,18.30148592,210.23,210.22,0.1]
[1759106060405,20.87020159,210.23,210.22,0.1]
[1759106061314,25.62689663,210.23,210.22,0.1]
[1759106061516,23.44791099,210.23,210.22,0.1]
[1759106061807,60.42791099,210.23,210.22,0.1]
[1759106062599,61.12791099,210.23,210.22,0.1]
[1759106063002,60.42791099,210.23,210.22,0.1]
[1759106064013,61.12791099,210.23,210.22,0.1]
[1759106064311,60.42791099,210.23,210.22,0.1]
[1759106065100,18.69121595,210.23,210.22,0.79]
[1759106065320,60.42791099,210.23,210.22,0.1]
[1759106066695,24.14791099,210.23,210.22,0.1]
[1759106066897,60.42791099,210.23,210.22,0.1]
[1759106067600,61.12791099,210.23,210.22,0.1]
[1759106070525,60.42791099,210.23,210.22,0.1]
[1759106071320,23.44791099,210.23,210.22,0.1]
[1759106071519,57.24100472,210.23,210.22,0.1]
[1759106071721,55.67121595,210.23,210.22,0.1]
[1759106072032,60.42791099,210.23,210.22,0.1]
[1759106072621,55.67121595,210.23,210.22,0.1]
[1759106072930,60.42791099,210.23,210.22,0.1]
[1759106073318,61.12791099,210.23,210.22,0.1]
[1759106073532,60.42791099,210.23,210.22,0.1]
[1759106076421,55.67121595,210.23,210.22,0.1]
[1759106077234,55.67121595,210.23,210.22,0.79]
[1759106077407,18.69121595,210.23,210.22,0.79]
[1759106077611,52.48430968,210.23,210.22,0.79]
[1759106077828,55.67121595,210.23,210.22,0.1]
[1759106078015,55.67121595,210.23,210.22,0.79]
[1759106079232,36.98,210.23,210.22,0.79]
[1759106079415,50.57559401,210.23,210.22,0.79]
[1759106082234,53.74939381,210.23,210.22,0.79]
[1759106085035,54.44939381,210.23,210.22,0.1]
[1759106085336,59.20608885,210.23,210.22,0.1]
[1759106085537,71.10241326,210.23,210.22,0.1]
[1759106085923,70.40241326,210.23,210.22,0.1]
[1759106087723,71.10241326,210.23,210.22,0.1]
[1759106088526,70.40815716,210.23,210.22,0.1]
[1759106090547,70.41002924,210.23,210.22,0.1]
[1759106091953,71.13002924,210.23,210.22,0.1]
[1759106092159,75.10679897,210.23,210.22,0.1]
[1759106093450,70.41002924,210.23,210.22,0.1]
[1759106094155,74.38679897,210.23,210.22,0.1]
[1759106094953,37.40679897,210.23,210.22,0.1]
[1759106095347,74.36679897,210.23,210.22,0.1]
[1759106095861,69.61010393,210.23,210.22,0.75]
[1759106096056,65.6333342,210.23,210.22,0.75]
[1759106096350,69.61010393,210.23,210.22,0.75]
[1759106097851,13.59559401,210.2,210.18,4.75782662]
[1759106098041,3.18141578,210.19,210.18,4.75782662]
[1759106099541,50.55559401,210.22,210.18,16.65239318]
[1759106099749,3.19180513,210.21,210.18,16.65239318]
[1759106099951,3.19180513,210.2,210.19,0.65]
[1759106100350,50.55559401,210.22,210.19,0.65]
[1759106100564,3.19186739,210.21,210.18,16.65239318]
[1759106100762,50.55559401,210.22,210.2,0.65]
[1759106101063,3.19179506,210.21,210.2,0.65]
[1759106101568,3.19179506,210.21,210.2,5.40737392]
[1759106102078,53.74735639,210.21,210.2,5.40737392]
[1759106102446,13.59559401,210.2,210.18,5.40781025]
[1759106102763,40.15137713,210.19,210.18,4.75781025]
[1759106102962,13.59559401,210.18,210.17,0.2]
[1759106103267,16.78697114,210.18,210.17,0.2]
[1759106103678,17.50697114,210.18,210.17,0.2]
[1759106103989,29.40516101,210.18,210.17,0.2]
[1759106104286,28.68516101,210.18,210.17,0.2]
[1759106104644,29.40516101,210.18,210.17,0.2]
[1759106104967,28.68516101,210.18,210.17,0.2]
[1759106107676,65.64516101,210.18,210.17,0.2]
[1759106108963,91.64516101,210.18,210.17,0.2]
[1759106112759,92.35516101,210.18,210.17,0.2]
[1759106115166,73.48897488,210.18,210.17,0.2]
[1759106116154,66.35516101,210.18,210.17,0.2]
[1759106117160,71.11298763,210.18,210.17,0.2]
[1759106117564,66.35516101,210.18,210.17,0.2]
[1759106119153,65.64516101,210.18,210.17,0.2]
[1759106119966,28.68516101,210.18,210.17,0.2]
[1759106120372,65.64516101,210.18,210.17,0.2]
[1759106121666,66.34516101,210.18,210.17,0.2]
[1759106122480,65.64516101,210.18,210.17,0.2]
[1759106124092,66.34516101,210.18,210.17,0.2]
[1759106124889,65.64516101,210.18,210.17,0.2]
[1759106129377,53.74697114,210.18,210.17,0.2]
[1759106129573,42.78697114,210.18,210.17,4.958053]
[1759106129788,79.74697114,210.18,210.17,4.958053]
[1759106130089,79.74697114,210.18,210.17,0.2]
[1759106133521,84.50521602,210.18,210.17,0.2]
[1759106134905,47.54521602,210.18,210.17,0.2]
[1759106135100,3.19137713,210.18,210.17,5.618053]
[1759106135299,66.15137713,210.18,210.17,5.618053]
[1759106135790,79.74697114,210.18,210.17,0.2]
[1759106135994,82.82295839,210.18,210.17,0.2]
[1759106136325,94.72042881,210.18,210.17,0.2]
[1759106136904,92.34444156,210.18,210.17,0.2]
[1759106138218,54.68444156,210.18,210.17,0.2]
[1759106138384,79.74697114,210.18,210.17,0.2]
[1759106138591,42.78697114,210.18,210.17,5.618053]
[1759106138890,42.78697114,210.18,210.17,4.958053]
[1759106138891,66.13137713,210.18,210.17,4.958053]
[1759106142101,79.72697114,210.18,210.17,0.2]
[1759106145799,79.72697114,210.18,210.17,4.958053]
[1759106146117,42.78697114,210.18,210.17,4.958053]
[1759106146420,79.72697114,210.18,210.17,4.958053]
[1759106146609,42.78697114,210.18,210.17,5.618053]
[1759106146917,79.72697114,210.18,210.17,5.618053]
[1759106147320,79.72697114,210.18,210.17,4.958053]
[1759106150127,79.72697114,210.18,210.17,0.2]
[1759106150328,80.42697114,210.18,210.17,0.2]
[1759106151202,54.42697114,210.18,210.17,0.2]
[1759106151415,66.98527825,210.18,210.17,0.2]
[1759106153022,71.74310487,210.18,210.17,0.2]
[1759106154323,74.11909212,210.18,210.17,0.2]
[1759106159930,78.09586185,210.18,210.17,0.2]
[1759106166027,39.59559401,210.14,210.09,0.1]
[1759106166238,39.59559401,210.1,210.09,0.1]
[1759106166546,76.53559401,210.1,210.09,0.1]
[1759106166738,78.44494746,210.1,210.09,0.1]
[1759106168324,79.96723178,210.1,210.09,0.1]
[1759106169542,80.68723178,210.1,210.09,0.1]
[1759106169724,83.87019854,210.1,210.09,0.1]
[1759106170123,88.6298368,210.1,210.09,0.1]
[1759106170935,92.36948453,210.1,210.09,0.1]
[1759106172739,106.46234507,210.1,210.09,0.1]
[1759106173234,13.59559401,210.09,210.08,0.1]
[1759106173441,53.71856077,210.09,210.08,0.1]
[1759106173740,59.13842558,210.09,210.08,0.1]
[1759106175353,39.59559401,210.07,210.06,0.1]
[1759106175556,78.05787833,210.07,210.06,0.1]
[1759106175755,78.71787833,210.07,210.06,0.1]
[1759106175935,41.50567686,210.07,210.06,0.77]
[1759106176252,52.44567686,210.07,210.06,0.1]
[1759106177950,52.44567686,210.07,210.06,0.77]
[1759106179763,52.44567686,210.07,210.06,5.5305446]
[1759106179944,76.53559401,210.07,210.06,5.5305446]
[1759106180145,50.53559401,210.07,210.06,5.5305446]
[1759106180352,50.53559401,210.07,210.06,0.77]
[1759106180760,13.59559401,210.07,210.06,5.5305446]
[1759106181063,50.53559401,210.07,210.06,0.77]
[1759106181760,50.53559401,210.07,210.06,5.5305446]
[1759106181957,50.53559401,210.07,210.06,0.77]
[1759106182963,50.53559401,210.07,210.06,5.5305446]
[1759106184140,50.53559401,210.07,210.06,0.77]
[1759106184363,50.53559401,210.07,210.06,5.5305446]
[1759106184655,62.43852186,210.07,210.06,5.5305446]
[1759106185277,62.43852186,210.07,210.06,0.1]
[1759106185936,69.41112416,210.07,210.06,0.1]
[1759106186151,64.65080618,210.07,210.06,0.1]
[1759106186352,67.88883984,210.07,210.06,0.1]
[1759106186545,69.41112416,210.07,210.06,0.1]
[1759106188769,72.58006931,210.07,210.06,0.1]
[1759106189359,69.41112416,210.07,210.06,0.1]
[1759106189560,67.88883984,210.07,210.06,0.1]
[1759106189760,69.47112416,210.07,210.06,0.1]
[1759106191462,72.64008658,210.07,210.06,0.1]
[1759106192883,39.59559401,210.03,210.0,0.1]
[1759106193063,15.11787833,210.01,210.0,0.1]
[1759106193251,52.13787833,210.01,210.0,0.1]
[1759106193455,54.73859987,210.01,210.0,0.1]
[1759106194150,59.50027788,210.01,210.0,0.1]
[1759106195051,61.0225622,210.01,210.0,0.1]
[1759106195275,15.11787833,209.96,209.95,0.1]
[1759106195475,52.11787833,209.96,209.95,0.1]
[1759106195785,52.80787833,209.96,209.95,0.1]
[1759106196083,54.71905633,209.96,209.95,0.1]
[1759106196452,54.02905633,209.96,209.95,0.1]
[1759106197463,54.71905633,209.96,209.95,0.1]
[1759106198760,22.48186829,209.96,209.95,0.1]
[1759106198960,59.48186829,209.96,209.95,0.1]
[1759106199263,13.59559401,209.94,209.93,0.28620716]
[1759106199569,50.61559401,209.94,209.93,0.28620716]
[1759106199769,51.30559401,209.94,209.93,0.28620716]
[1759106200067,13.59559401,209.9,209.86,3.58306833]
[1759106200271,13.59559401,209.86,209.85,4.76530855]
[1759106200586,50.61559401,209.86,209.85,4.76530855]
[1759106200793,63.20025227,209.86,209.85,4.76530855]
[1759106201172,64.72253659,209.86,209.84,4.36553319]
[1759106201360,13.59559401,209.84,209.83,4.7657469]
[1759106201565,50.61559401,209.84,209.83,4.7657469]
[1759106202274,50.61559401,209.84,209.83,5.4357469]
[1759106202663,13.59559401,209.84,209.83,5.4357469]
[1759106202869,37.02,209.84,209.83,17.3501538]
[1759106203064,50.61559401,209.85,209.83,17.3501538]
[1759106203263,50.61559401,209.85,209.84,0.67]
[1759106203872,37.02,209.85,209.84,0.67]
[1759106204570,12.58465826,209.86,209.84,5.43553564]
[1759106204762,13.59559401,209.97,209.85,0.67]
[1759106204962,37.06,209.96,209.85,0.67]
[1759106205194,26.0,209.93,209.85,0.67]
[1759106205497,1.52228432,210.0,209.85,0.67]
[1759106205663,19.32,209.99,209.85,0.67]
[1759106205986,14.32904258,209.98,209.85,0.67]
[1759106206288,13.59559401,209.96,209.85,0.67]
[1759106206471,37.1,209.95,209.85,0.67]
[1759106206784,37.1,209.95,209.86,40.50319259]
[1759106206983,37.1,209.96,209.87,0.67]
[1759106208687,37.1,209.96,209.88,16.67619591]
[1759106208879,37.1,209.96,209.89,0.67]
[1759106210268,37.12,209.95,209.9,16.67460694]
[1759106210587,37.1,209.95,209.91,0.67]
[1759106210790,39.59559401,209.98,209.9,40.49547401]
[1759106210968,37.1,209.97,209.92,0.68]
[1759106211683,37.1,209.98,209.93,0.68]
[1759106212188,13.59559401,209.97,209.9,40.49547401]
[1759106212568,13.59559401,209.96,209.9,40.49547401]
[1759106213389,13.59559401,209.97,209.9,40.49547401]
[1759106216033,14.30559401,209.97,209.9,16.67460694]
[1759106216799,13.59559401,209.95,209.9,16.67460694]
[1759106217091,37.79,209.94,209.9,16.67460694]
[1759106217293,0.71,209.93,209.9,16.67460694]
[1759106217503,0.71,209.93,209.87,16.67699051]
[1759106219385,13.59559401,209.92,209.87,16.67699051]
[1759106219582,14.30559401,209.92,209.87,16.67699051]
[1759106219809,0.71,209.91,209.87,16.67699051]
[1759106220016,13.59559401,209.92,209.87,16.67699051]
[1759106220509,14.30559401,209.92,209.87,16.67699051]
[1759106220704,13.59559401,209.92,209.87,16.67699051]
[1759106220908,13.59559401,209.92,209.87,17.35699051]
[1759106221413,14.30559401,209.92,209.87,17.35699051]
[1759106221712,51.36559401,209.92,209.87,17.35699051]
[1759106222312,50.65559401,209.92,209.87,17.35699051]
[1759106222513,37.06,209.92,209.88,0.68]
[1759106222714,37.06,209.92,209.89,0.68]
[1759106224013,37.06,209.92,209.9,4.76417341]
[1759106224711,0.71,209.96,209.9,16.67460694]
[1759106224899,26.0,209.92,209.9,16.67460694]
[1759106226206,50.65559401,209.95,209.9,16.67460694]
[1759106226508,37.04,209.96,209.91,0.68]
[1759106226697,37.04,209.96,209.92,0.68]
[1759106226901,26.0,209.96,209.92,0.68]
[1759106227111,63.04,209.97,209.92,0.68]
[1759106227629,26.71,209.97,209.93,16.67222407]
[1759106227800,26.0,209.97,209.94,0.68]
[1759106228003,4.705999,210.0,209.95,0.68]
[1759106228208,41.745999,210.0,209.96,0.68]
[1759106228415,13.59559401,209.99,209.93,16.67222407]
[1759106228720,0.71,209.98,209.93,16.67222407]
[1759106228898,0.71,209.97,209.93,16.67222407]
[1759106229094,0.71,209.96,209.93,16.67222407]
[1759106229422,0.71,209.98,209.93,16.67222407]
[1759106229598,0.71,209.97,209.93,16.67222407]
[1759106229792,13.59559401,209.99,209.94,0.68]
[1759106229994,14.30559401,209.99,209.95,0.68]
[1759106230296,13.59559401,209.99,209.95,0.68]
[1759106230695,14.30559401,209.99,209.95,0.68]
[1759106231121,14.30559401,209.99,209.93,0.68]
[1759106231813,3.995999,210.0,209.93,0.68]
[1759106232602,4.665999,210.0,209.93,0.68]
[1759106233010,4.665999,210.0,209.94,40.48775839]
[1759106233897,4.665999,210.0,209.94,41.16775839]
[1759106235127,0.67,209.99,209.94,41.16775839]
[1759106236822,3.995999,210.0,209.95,0.68]
[1759106237019,0.67,209.99,209.95,0.68]
[1759106239231,3.995999,210.0,209.96,16.66984187]
[1759106239420,4.665999,210.0,209.96,16.66984187]
[1759106239717,3.995999,210.0,209.96,16.66984187]
[1759106239925,4.665999,210.0,209.96,16.66984187]
[1759106240326,3.995999,210.0,209.96,16.66984187]
[1759106240527,0.67,209.99,209.96,16.66984187]
[1759106240911,3.995999,210.0,209.96,16.66984187]
[1759106241217,3.995999,210.0,209.97,0.71]
[1759106242731,3.995999,210.0,209.98,4.76235831]
[1759106242910,3.995999,210.0,209.99,0.71]
[1759106243732,3.995999,210.0,209.98,4.76235831]
[1759106244136,3.995999,210.0,209.98,5.47235831]
[1759106244626,3.995999,210.0,209.99,0.71]
[1759106245239,3.995999,210.0,209.96,11.90702991]
[1759106245418,3.995999,210.0,209.98,0.71]
[1759106245735,3.995999,210.0,209.99,0.71]
[1759106246039,3.995999,210.0,209.97,0.71]
[1759106246925,1e-08,210.0,209.97,0.71]
[1759106247112,1e-08,210.0,209.98,4.76235831]
[1759106247618,1e-08,210.0,209.99,0.71]
[1759106248523,1e-08,210.0,209.99,37.73]
[1759106249233,1e-08,210.0,209.99,62.49213153]
[1759106249412,1e-08,210.0,209.99,76.08772554]
[1759106249932,1e-08,210.0,209.99,42.49213153]
[1759106250129,1e-08,210.0,209.99,4.76213153]
[1759106251121,1e-08,210.0,209.98,4.76235831]
[1759106251318,1e-08,210.0,209.98,5.47235831]
[1759106251520,1e-08,210.0,209.99,0.71]
[1759106251724,1e-08,210.0,209.99,37.75]
[1759106253427,1e-08,210.0,209.99,42.51213153]
[1759106254526,1e-08,210.0,209.99,56.10772554]
[1759106255842,1.32,210.14,210.02,26.0]
[1759106256040,2.38000094,210.17,210.03,37.73]
[1759106256224,2.38000094,210.17,210.03,26.71]
[1759106256431,2.38000094,210.17,210.04,37.02]
[1759106257336,2.38000094,210.17,210.05,40.46655557]
[1759106257740,26.0,210.15,210.05,40.46655557]
[1759106258317,26.61,210.17,210.05,40.46655557]
[1759106258832,13.59559401,210.16,210.05,40.46655557]
[1759106259140,13.79559401,210.2,210.05,40.46655557]
[1759106259141,13.59559401,210.12,210.05,40.46655557]
[1759106259338,14.20559401,210.12,210.05,40.46655557]
[1759106259645,26.0,210.09,210.05,16.66269935]
[1759106259942,0.61,210.08,210.05,4.76077124]
[1759106260134,0.61,210.07,210.05,4.76077124]
[1759106260640,26.0,210.09,210.05,16.66269935]
[1759106260844,0.61,210.08,210.05,16.66269935]
[1759106261426,0.61,210.08,210.01,16.66587304]
[1759106263249,13.59559401,210.07,210.01,16.66587304]
[1759106263430,13.59559401,210.05,209.96,37.02]
[1759106264326,13.59559401,210.03,209.95,40.4849914]
[1759106265443,26.0,210.04,209.95,35.72195259]
[1759106265665,26.0,210.05,209.96,0.71]
[1759106265836,13.59559401,210.1,209.96,0.71]
[1759106266049,26.0,210.07,209.96,0.71]
[1759106266836,26.61,210.07,209.96,0.71]
[1759106267243,13.59559401,210.06,209.95,73.45195259]
[1759106267451,0.61,210.05,209.96,0.71]
[1759106269368,26.0,210.05,209.96,0.71]
[1759106269537,13.59559401,210.08,209.97,40.4819736]
[1759106269743,39.59559401,210.08,209.98,0.71]
[1759106269945,39.59559401,210.08,209.99,37.06]
[1759106270145,0.61,210.07,209.99,37.06]
[1759106270556,0.61,210.07,210.01,16.66587304]
[1759106272963,26.0,210.08,210.01,40.47426311]
[1759106273156,26.0,210.08,210.02,0.71]
[1759106274270,14.20559401,210.12,210.02,0.71]
[1759106274449,51.24559401,210.12,210.02,0.71]
[1759106274768,26.0,210.09,210.03,40.47040897]
[1759106275261,13.59559401,210.14,210.04,0.71]
[1759106275452,26.0,210.11,210.04,0.71]
[1759106276265,26.0,210.11,210.05,16.66269935]
[1759106276768,26.0,210.11,210.06,0.71]
[1759106276956,26.0,210.11,210.07,0.71]
[1759106277147,26.61,210.11,210.07,0.71]
[1759106277569,26.0,210.11,210.08,16.66031987]
[1759106277870,0.61,210.1,210.08,16.66031987]
[1759106278770,26.0,210.11,210.08,16.66031987]
[1759106279064,13.59559401,210.15,210.08,16.66031987]
[1759106279374,26.0,210.12,210.08,17.37031987]
[1759106280173,26.61,210.12,210.08,16.66031987]
[1759106280371,0.61,210.11,210.08,16.66031987]
[1759106280872,26.0,210.12,210.08,16.66031987]
[1759106280873,26.0,210.12,210.08,17.37031987]
[1759106281047,26.0,210.12,210.08,16.66031987]
[1759106281250,26.61,210.12,210.08,16.66031987]
[1759106281657,26.0,210.12,210.08,11.90022848]
[1759106281863,0.61,210.11,210.08,11.90022848]
[1759106283284,0.61,210.1,210.04,16.66349266]
[1759106283464,0.61,210.1,210.05,0.71]
[1759106283661,26.61,210.12,210.05,0.71]
[1759106285555,26.61,210.12,210.06,16.66190611]
[1759106286181,26.61,210.12,210.06,17.37190611]
[1759106288774,0.61,210.14,210.07,0.71]
[1759106289078,13.59559401,210.13,210.06,17.37190611]
[1759106289381,15.97559495,210.09,210.06,4.7605446]
[1759106289567,0.61,210.08,210.06,4.7605446]
[1759106289766,0.61,210.07,210.06,4.7605446]
[1759106290580,0.61,210.07,210.03,11.90269546]
[1759106290774,15.97559495,210.09,210.03,11.90269546]
[1759106290775,0.61,210.06,210.03,11.90269546]
[1759106290979,26.0,210.08,210.04,0.71]
[1759106291280,26.0,210.08,210.03,11.90269546]
[1759106291484,26.0,210.09,210.04,0.71]
[1759106291680,26.61,210.09,210.04,0.71]
[1759106292872,26.61,210.09,210.01,23.80839007]
[1759106293074,26.61,210.09,210.02,0.72]
[1759106293962,26.61,210.09,210.03,16.66428604]
[1759106294181,26.61,210.09,210.04,0.72]
[1759106294364,0.68,210.08,210.04,0.72]
[1759106295385,0.68,210.08,210.03,40.47040897]
[1759106295581,0.68,210.07,210.03,41.19040897]
[1759106296383,0.68,210.07,210.03,16.66428604]
[1759106296564,2.20202269,210.06,210.03,4.76122458]
[1759106296767,0.68,210.05,210.03,4.76122458]
[1759106296969,14.27559401,210.04,210.03,4.76122458]
[1759106297282,13.59559401,210.01,209.98,4.76235831]
[1759106297482,0.68,210.0,209.98,4.76235831]
[1759106297690,0.68,209.99,209.98,4.76235831]
[1759106297981,0.68,209.99,209.94,11.90772154]
[1759106298285,26.0,209.98,209.94,11.90772154]
[1759106298600,26.68,209.98,209.94,11.90772154]
[1759106298777,26.0,209.98,209.94,11.90772154]
[1759106298971,0.68,209.97,209.94,11.90772154]
[1759106299786,0.68,209.96,209.93,4.76349259]
[1759106299968,0.68,209.95,209.93,4.76349259]
[1759106300170,0.68,209.94,209.93,4.76349259]
[1759106300775,0.72,209.96,209.93,4.76349259]
[1759106301071,0.72,209.95,209.93,4.76349259]
[1759106302187,0.72,209.95,209.91,16.67335394]
[1759106302794,13.59559401,209.97,209.92,0.7]
[1759106302981,2.24202269,209.98,209.93,0.7]
[1759106303181,26.72,209.97,209.91,17.37335394]
[1759106308482,14.31559401,209.96,209.91,17.37335394]
[1759106308695,0.72,209.95,209.91,17.37335394]
[1759106309776,13.59559401,209.96,209.91,17.37335394]
[1759106309976,26.0,209.97,209.92,0.7]
[1759106310181,26.0,209.97,209.93,0.7]
[1759106310701,26.72,209.97,209.93,0.7]
[1759106311279,26.0,209.99,209.94,17.37142992]
[1759106311478,26.0,209.99,209.95,0.7]
[1759106311695,26.0,209.99,209.94,16.67142992]
[1759106311899,26.0,210.0,209.95,0.7]
[1759106313406,26.0,210.0,209.97,16.66904795]
[1759106313702,26.0,210.0,209.97,17.36904795]
[1759106314111,0.72,210.04,209.98,0.7]
[1759106314318,0.72,210.05,209.98,0.7]
[1759106314615,26.0,210.04,209.98,0.7]
[1759106314816,0.72,210.07,209.98,37.74]
[1759106315119,0.72,210.09,209.99,0.7]
[1759106315607,0.72,210.09,210.0,16.66666666]
[1759106315905,0.72,210.09,210.01,0.7]
[1759106316092,26.72,210.08,210.01,0.7]
[1759106316497,0.72,210.08,210.01,0.7]
[1759106317301,26.72,210.08,210.01,0.7]
[1759106317900,26.72,210.08,210.02,16.66507951]
[1759106318291,0.72,210.08,210.02,16.66507951]
[1759106318613,0.72,210.08,210.03,0.7]